bitfinex-derivatives/quotes_BTCF0:USTF0_20250926
["timestamp","ask_amount","ask_price","bid_price","bid_amount"]
[1758861430556,1.99054256,109340.0,109330.0,0.0273]
[1758861431558,1.99054256,109340.0,109330.0,0.005]
[1758861432264,2.64964239,109340.0,109330.0,0.005]
[1758861434260,0.1141196,109320.0,109310.0,0.45663474]
[1758861434467,1.58836278,109320.0,109310.0,0.39668]
[1758861434764,1.96975926,109320.0,109310.0,0.39668]
[1758861435461,1.97075926,109320.0,109310.0,0.40268]
[1758861435766,1.3741596,109320.0,109310.0,0.40268]
[1758861435967,1.97075926,109320.0,109310.0,0.40268]
[1758861436463,1.97075926,109320.0,109310.0,0.38038]
[1758861436659,1.97075926,109320.0,109310.0,0.40268]
[1758861436855,1.3741596,109320.0,109310.0,0.40268]
[1758861437167,1.97519926,109320.0,109310.0,0.4951078]
[1758861437561,1.3785996,109320.0,109310.0,0.40368]
[1758861437867,1.97519926,109320.0,109310.0,0.40368]
[1758861438663,1.57744544,109320.0,109310.0,0.40368]
[1758861438868,1.77629128,109320.0,109310.0,0.40368]
[1758861439172,1.77629128,109320.0,109310.0,0.40356]
[1758861441665,0.31896544,109320.0,109310.0,0.4949878]
[1758861441870,1.17668544,109320.0,109310.0,0.4949878]
[1758861443272,0.31896544,109320.0,109310.0,0.4949878]
[1758861443471,1.17608544,109320.0,109310.0,0.4949878]
[1758861443769,1.17608544,109320.0,109310.0,0.57724254]
[1758861444571,1.17608544,109320.0,109310.0,0.65047273]
[1758861445972,1.17608544,109320.0,109310.0,0.56821799]
[1758861448665,0.88582,109320.0,109310.0,0.77637643]
[1758861448870,0.88582,109320.0,109310.0,1.25863117]
[1758861448871,0.86312,109320.0,109310.0,1.25863117]
[1758861449773,0.86312,109320.0,109310.0,1.35010992]
[1758861451277,1.06196584,109320.0,109310.0,1.34079732]
[1758861451473,1.06196584,109320.0,109310.0,1.35009342]
[1758861451773,1.15338534,109320.0,109310.0,1.14195148]
[1758861452073,1.37428118,109320.0,109310.0,0.65052368]
[1758861452375,1.17543534,109320.0,109310.0,0.65052368]
[1758861452572,1.37428118,109320.0,109310.0,0.65052368]
[1758861452776,1.17543534,109320.0,109310.0,0.65052368]
[1758861452978,0.9765895,109320.0,109310.0,0.74195158]
[1758861453178,1.17543534,109320.0,109310.0,0.74195158]
[1758861453972,0.9765895,109320.0,109310.0,0.74195158]
[1758861454174,1.17543534,109320.0,109310.0,0.74195158]
[1758861455876,0.9765895,109320.0,109310.0,0.74195158]
[1758861456084,1.17543534,109320.0,109310.0,0.74195158]
[1758861456292,1.17543534,109320.0,109310.0,0.65969684]
[1758861459383,1.37428118,109320.0,109310.0,0.56826894]
[1758861459581,1.17543534,109320.0,109310.0,0.65969684]
[1758861460083,1.17543534,109320.0,109310.0,0.74195158]
[1758861461086,1.79850067,109320.0,109310.0,0.12513474]
[1758861461592,1.78033118,109320.0,109310.0,0.12513474]
[1758861461884,1.37428118,109320.0,109310.0,0.12513474]
[1758861462385,1.37428118,109320.0,109310.0,0.04288]
[1758861463675,1.37428118,109320.0,109310.0,0.007]
[1758861463991,0.9765895,109320.0,109310.0,0.40346]
[1758861464194,1.17543534,109320.0,109310.0,0.4948879]
[1758861465889,1.17543534,109320.0,109310.0,0.40346]
[1758861466797,0.9765895,109320.0,109310.0,0.40346]
[1758861467089,1.17543534,109320.0,109310.0,0.40346]
[1758861469395,1.18148534,109320.0,109310.0,0.007]
[1758861469588,1.38033118,109320.0,109310.0,0.007]
[1758861469791,1.38033118,109320.0,109310.0,0.02952]
[1758861470992,1.37428118,109320.0,109310.0,0.04266]
[1758861472381,1.17543534,109320.0,109310.0,0.40346]
[1758861472586,1.17543534,109320.0,109310.0,0.4948878]
[1758861473792,1.17543534,109320.0,109310.0,0.40346]
[1758861476992,0.9765895,109320.0,109310.0,0.40346]
[1758861477193,1.17543534,109320.0,109310.0,0.4948878]
[1758861480886,0.9765895,109320.0,109310.0,0.4948878]
[1758861481193,1.17543534,109320.0,109310.0,0.4948878]
[1758861481386,0.1194695,109320.0,109310.0,0.8948878]
[1758861481586,0.006,109320.0,109310.0,1.09373364]
[1758861481786,0.7316,109320.0,109310.0,1.09373364]
[1758861482288,0.93044584,109320.0,109310.0,1.09373364]
[1758861482591,1.02186524,109320.0,109310.0,1.09373364]
[1758861483895,1.04289524,109320.0,109310.0,0.80346]
[1758861484695,1.24174108,109320.0,109310.0,0.80346]
[1758861485593,1.24174108,109320.0,109310.0,0.38094]
[1758861485789,1.24174108,109320.0,109310.0,0.38984]
[1758861485990,1.24174108,109320.0,109310.0,0.04291]
[1758861488302,1.24174108,109320.0,109310.0,0.007]
[1758861489800,1.24174108,109320.0,109310.0,0.02904]
[1758861489991,1.24174108,109320.0,109310.0,0.007]
[1758861490395,1.24174108,109320.0,109310.0,0.02904]
[1758861490598,1.24174108,109320.0,109310.0,0.007]
[1758861493105,1.65992504,109320.0,109310.0,0.007]
[1758861494401,1.79636504,109320.0,109310.0,0.04291]
[1758861494700,0.5184494,109320.0,109310.0,0.04291]
[1758861494895,1.58001524,109320.0,109310.0,0.40371]
[1758861495501,1.77886108,109320.0,109310.0,0.40371]
[1758861496099,1.77886108,109320.0,109310.0,0.007]
[1758861496399,0.71729524,109320.0,109310.0,0.40371]
[1758861496597,0.31729524,109320.0,109310.0,0.40371]
[1758861496797,1.38022108,109320.0,109310.0,0.40371]
[1758861498199,0.9825294,109320.0,109310.0,0.40371]
[1758861498411,1.38022108,109320.0,109310.0,0.40371]
[1758861498811,1.38022108,109320.0,109310.0,0.38984]
[1758861499007,1.38022108,109320.0,109310.0,0.40371]
[1758861500105,1.38014108,109320.0,109310.0,0.40371]
[1758861500698,1.57906158,109320.0,109310.0,0.40371]
[1758861502212,0.9824494,109320.0,109310.0,0.40371]
[1758861502402,1.57906158,109320.0,109310.0,0.40371]
[1758861506415,1.57906158,109320.0,109310.0,0.4951378]
[1758861512420,1.57906158,109320.0,109310.0,0.40371]
[1758861517225,0.9824494,109320.0,109310.0,0.40371]
[1758861517412,1.57906158,109320.0,109310.0,0.40371]
[1758861520224,1.57906158,109320.0,109310.0,0.79344409]
[1758861520625,0.9824494,109320.0,109310.0,0.79344409]
[1758861520825,1.57906158,109320.0,109310.0,0.79344409]
[1758861521214,1.57906158,109320.0,109310.0,0.495138]
[1758861522426,1.28075549,109320.0,109310.0,0.79344409]
[1758861522624,1.57906158,109320.0,109310.0,0.79344409]
[1758861522819,0.41675549,109320.0,109310.0,0.79344409]
[1758861523025,1.16650609,109320.0,109310.0,1.19344409]
[1758861523332,1.16650609,109320.0,109310.0,1.36717758]
[1758861523525,1.16650609,109320.0,109310.0,1.06887149]
[1758861523837,1.16650609,109320.0,109310.0,1.36717758]
[1758861524019,1.16650609,109320.0,109310.0,1.06887149]
[1758861524225,1.16650609,109320.0,109310.0,1.36717758]
[1758861524530,1.16650609,109320.0,109310.0,1.28492284]
[1758861525328,0.8682,109320.0,109310.0,1.28492284]
[1758861525530,1.16650609,109320.0,109310.0,1.28492284]
[1758861526533,1.16650609,109320.0,109310.0,1.29410019]
[1758861526733,0.8682,109320.0,109310.0,1.29410019]
[1758861526935,1.16650609,109320.0,109310.0,1.29410019]
[1758861527435,0.30430609,109320.0,109310.0,1.29410019]
[1758861527631,1.06674609,109320.0,109310.0,1.29410019]
[1758861528035,1.06674609,109320.0,109310.0,0.9957941]
[1758861528231,1.06674609,109320.0,109310.0,1.29410019]
[1758861529536,0.20430609,109320.0,109310.0,1.29410019]
[1758861529729,1.06674609,109320.0,109310.0,1.29410019]
[1758861530437,0.091416,109330.0,109320.0,0.1269396]
[1758861530632,1.25196209,109330.0,109320.0,0.78604569]
[1758861531135,0.41238209,109330.0,109320.0,0.78604569]
[1758861531338,1.27454209,109330.0,109320.0,0.78604569]
[1758861531733,1.27454209,109330.0,109320.0,0.78904569]
[1758861531934,1.27754209,109330.0,109320.0,0.39932]
[1758861532637,1.27754209,109330.0,109320.0,0.69762609]
[1758861533041,1.27754209,109330.0,109320.0,0.39932]
[1758861533336,1.27754209,109330.0,109320.0,0.69762609]
[1758861533638,1.27754209,109330.0,109320.0,0.39932]
[1758861533838,1.27754209,109330.0,109320.0,0.69762609]
[1758861535836,1.27754209,109330.0,109320.0,0.78904569]
[1758861535837,0.117076,109330.0,109320.0,0.78904569]
[1758861536032,1.27778209,109330.0,109320.0,0.78904569]
[1758861536744,0.979476,109330.0,109320.0,0.78904569]
[1758861536945,1.27778209,109330.0,109320.0,0.78904569]
[1758861538135,0.88806,109330.0,109320.0,1.08735178]
[1758861538340,0.8654,109330.0,109320.0,1.57882216]
[1758861539039,1.25511729,109330.0,109320.0,0.88051607]
[1758861539241,1.27665729,109330.0,109320.0,0.88051607]
[1758861539943,0.9783512,109330.0,109320.0,0.88051607]
[1758861540143,1.27665729,109330.0,109320.0,0.49079038]
[1758861540336,1.27665729,109330.0,109320.0,0.39932]
[1758861540535,1.57496338,109330.0,109320.0,0.39932]
[1758861540742,1.27665729,109330.0,109320.0,0.39932]
[1758861541030,1.27665729,109330.0,109320.0,0.69762609]
[1758861542043,1.27665729,109330.0,109320.0,0.78904579]
[1758861543547,1.27665729,109330.0,109320.0,0.39932]
[1758861543749,1.27665729,109330.0,109320.0,0.69762609]
[1758861550165,1.27665729,109330.0,109320.0,0.78904569]
[1758861551167,1.27665729,109330.0,109320.0,0.4907396]
[1758861551366,1.27665729,109330.0,109320.0,0.69762609]
[1758861552065,1.27665729,109330.0,109320.0,0.39932]
[1758861552254,1.27665729,109330.0,109320.0,0.69762609]
[1758861554478,1.27665729,109330.0,109320.0,0.39932]
[1758861554764,1.27665729,109330.0,109320.0,0.3638]
[1758861554765,1.58101338,109330.0,109320.0,0.3638]
[1758861554972,1.98101338,109330.0,109320.0,0.003]
[1758861556468,2.34181338,109330.0,109320.0,0.003]
[1758861557471,1.7452012,109330.0,109320.0,0.003]
[1758861557673,2.34181338,109330.0,109320.0,0.003]
[1758861562563,2.14292466,109330.0,109320.0,0.003]
[1758861564871,1.94406293,109330.0,109320.0,0.003]
[1758861566377,1.7452012,109330.0,109320.0,0.003]
[1758861566576,1.94406293,109330.0,109320.0,0.003]
[1758861567276,1.58326293,109330.0,109320.0,0.003]
[1758861575883,1.78212466,109330.0,109320.0,0.003]
[1758861579487,1.38212466,109330.0,109320.0,0.003]
[1758861580181,1.38212466,109330.0,109320.0,0.025]
[1758861580586,1.38212466,109330.0,109320.0,0.003]
[1758861580989,0.9783512,109330.0,109320.0,0.025]
[1758861581181,1.17721293,109330.0,109320.0,0.025]
[1758861583596,0.9783512,109330.0,109320.0,0.025]
[1758861583892,1.18326293,109330.0,109320.0,0.003]
[1758861584382,1.38212466,109330.0,109320.0,0.003]
[1758861587596,1.4008944,109330.0,109320.0,0.003]
[1758861588495,1.20203267,109330.0,109320.0,0.003]
[1758861589589,1.00317094,109330.0,109320.0,0.003]
[1758861589795,1.20203267,109330.0,109320.0,0.003]
[1758861594501,1.20203267,109330.0,109320.0,0.025]
[1758861597703,1.19598267,109330.0,109320.0,0.03834]
[1758861601605,0.33358267,109330.0,109320.0,0.03834]
[1758861601807,0.99164094,109330.0,109320.0,1.08942133]
[1758861602209,1.19050267,109330.0,109320.0,0.79914]
[1758861602618,1.19050267,109330.0,109320.0,0.8905596]
[1758861604617,1.19050267,109330.0,109320.0,1.08942133]
[1758861605917,0.99164094,109330.0,109320.0,1.08942133]
[1758861606118,1.19050267,109330.0,109320.0,1.08942133]
[1758861606416,1.19050267,109330.0,109320.0,1.09867448]
[1758861607814,0.99164094,109330.0,109320.0,1.09867448]
[1758861608015,1.19050267,109330.0,109320.0,1.09867448]
[1758861608316,0.04330974,109330.0,109320.0,1.09867448]
[1758861608620,0.87892974,109330.0,109320.0,1.09867448]
[1758861611322,0.90116974,109330.0,109320.0,0.89981275]
[1758861611709,0.90116974,109330.0,109320.0,1.09867448]
[1758861612917,0.87892974,109330.0,109320.0,1.09867448]
[1758861614218,0.99258094,109330.0,109320.0,0.79914]
[1758861614418,1.19144267,109330.0,109320.0,0.99800173]
[1758861614816,1.19144267,109330.0,109320.0,0.79914]
[1758861616024,1.19144267,109330.0,109320.0,0.43834]
[1758861616421,1.19144267,109330.0,109320.0,0.79914]
[1758861616819,0.99258094,109330.0,109320.0,0.99800173]
[1758861617125,1.19144267,109330.0,109320.0,0.99800173]
[1758861618014,1.19144267,109330.0,109320.0,0.03834]
[1758861618217,1.19144267,109330.0,109320.0,0.003]
[1758861618218,1.19749267,109330.0,109320.0,0.003]
[1758861618414,1.19144267,109330.0,109320.0,0.02471]
[1758861618619,1.19144267,109330.0,109320.0,0.03832]
[1758861618919,0.99258094,109330.0,109320.0,0.03832]
[1758861619121,1.19144267,109330.0,109320.0,0.03832]
[1758861619520,1.19144267,109330.0,109320.0,0.39912]
[1758861619720,1.19144267,109330.0,109320.0,0.03832]
[1758861619922,1.19144267,109330.0,109320.0,0.39912]
[1758861620622,1.19144267,109330.0,109320.0,0.03832]
[1758861621022,1.19144267,109330.0,109320.0,0.39912]
[1758861621723,1.19749267,109330.0,109320.0,0.003]
[1758861622418,1.19749267,109330.0,109320.0,0.243]
[1758861622620,1.5951751,109330.0,109320.0,0.243]
[1758861623630,1.5951751,109330.0,109320.0,0.003]
[1758861623821,1.9951751,109330.0,109320.0,0.003]
[1758861624827,2.3559751,109330.0,109320.0,0.003]
[1758861632038,1.9951751,109330.0,109320.0,0.003]
[1758861639547,1.5951751,109330.0,109320.0,0.003]
[1758861639744,1.5951751,109330.0,109320.0,0.02465]
[1758861640148,1.5951751,109330.0,109320.0,0.003]
[1758861640750,1.5951751,109330.0,109320.0,0.02465]
[1758861641250,1.29690302,109330.0,109320.0,0.02465]
[1758861643349,1.5951751,109330.0,109320.0,0.02465]
[1758861649153,1.5951751,109330.0,109320.0,0.003]
[1758861650055,1.5951751,109330.0,109320.0,0.02465]
[1758861651659,1.5951751,109330.0,109320.0,0.003]
[1758861655364,1.57640536,109330.0,109320.0,0.003]
[1758861656663,0.9798612,109330.0,109320.0,0.003]
[1758861656961,1.57640536,109330.0,109320.0,0.003]
[1758861660577,1.57640536,109330.0,109320.0,0.02544]
[1758861660763,1.57640536,109330.0,109320.0,0.003]
[1758861665976,0.9798612,109330.0,109320.0,0.003]
[1758861666182,1.57640536,109330.0,109320.0,0.02544]
[1758861666479,1.57640536,109330.0,109320.0,0.003]
[1758861667385,1.57640536,109330.0,109320.0,0.02615]
[1758861667682,1.57640536,109330.0,109320.0,0.003]
[1758861670778,1.93720536,109330.0,109320.0,0.003]
[1758861678381,0.1128781,109310.0,109300.0,0.74268474]
[1758861678582,1.26587018,109310.0,109300.0,0.76583474]
[1758861678782,1.26587018,109310.0,109300.0,0.68358]
[1758861679190,1.27481967,109310.0,109300.0,0.68358]
[1758861679888,1.27581967,109310.0,109300.0,0.69358]
[1758861680692,0.97754759,109310.0,109300.0,0.64782]
[1758861680992,1.27581967,109310.0,109300.0,0.64782]
[1758861682691,1.27581967,109310.0,109300.0,0.73007474]
[1758861683094,1.27581967,109310.0,109300.0,1.02834682]
[1758861683893,1.27581967,109310.0,109300.0,0.94609208]
[1758861684191,0.9685981,109310.0,109300.0,1.03752858]
[1758861684387,1.26687018,109310.0,109300.0,0.7392565]
[1758861684595,1.1674823,109310.0,109300.0,0.7392565]
[1758861685393,1.1674823,109310.0,109300.0,0.7850165]
[1758861689191,0.9685981,109310.0,109300.0,0.7850165]
[1758861689390,1.1674823,109310.0,109300.0,0.7850165]
[1758861690095,1.1674823,109310.0,109300.0,0.9839007]
[1758861690291,1.1674823,109310.0,109300.0,0.7850165]
[1758861690595,1.1674823,109310.0,109300.0,0.9839007]
[1758861691597,0.9685981,109310.0,109300.0,0.9839007]
[1758861691900,1.1674823,109310.0,109300.0,0.9839007]
[1758861692298,0.9685981,109310.0,109300.0,0.9839007]
[1758861692496,1.1674823,109310.0,109300.0,0.9839007]
[1758861693988,1.1674823,109310.0,109300.0,0.7850165]
[1758861694192,1.1674823,109310.0,109300.0,0.5449365]
[1758861696197,1.1674823,109310.0,109300.0,0.7438207]
[1758861697391,0.9685981,109310.0,109300.0,0.7438207]
[1758861697597,1.1674823,109310.0,109300.0,0.7438207]
[1758861699204,1.1674823,109310.0,109300.0,0.5449365]
[1758861700109,1.1674823,109310.0,109300.0,0.4535]
[1758861700408,1.1674823,109310.0,109300.0,0.6935]
[1758861702808,1.1674823,109310.0,109300.0,0.77575474]
[1758861703707,1.1674823,109310.0,109300.0,0.53575474]
[1758861704600,1.1674823,109310.0,109300.0,0.51260474]
[1758861704801,1.1674823,109310.0,109300.0,0.53391474]
[1758861706111,1.1674823,109310.0,109300.0,0.49881474]
[1758861706403,1.1674823,109310.0,109300.0,0.07707]
[1758861707711,1.7352965,109310.0,109300.0,0.05576]
[1758861708096,2.1352965,109310.0,109300.0,0.05576]
[1758861709804,1.7375281,109310.0,109300.0,0.05576]
[1758861710010,2.1352965,109310.0,109300.0,0.05576]
[1758861710510,1.9364123,109310.0,109300.0,0.05576]
[1758861713415,1.9550973,109310.0,109300.0,0.05576]
[1758861714918,2.1539815,109310.0,109300.0,0.05576]
[1758861715211,1.9550973,109310.0,109300.0,0.05576]
[1758861717114,1.95503442,109310.0,109300.0,0.05576]
[1758861718714,1.95503442,109310.0,109300.0,0.01]
[1758861719706,1.95503442,109310.0,109300.0,0.005]
[1758861719908,1.96203442,109310.0,109300.0,0.006]
[1758861720512,1.76315022,109310.0,109300.0,0.006]
[1758861720718,2.16088645,109310.0,109300.0,0.006]
[1758861721020,2.15988645,109310.0,109300.0,0.002]
[1758861721818,1.96100225,109310.0,109300.0,0.002]
[1758861722019,1.96100225,109310.0,109300.0,0.02368]
[1758861722721,1.76211805,109310.0,109300.0,0.02368]
[1758861722920,1.96100225,109310.0,109300.0,0.02368]
[1758861724019,1.59207225,109310.0,109300.0,0.03716]
[1758861724622,0.33735225,109310.0,109300.0,0.4893964]
[1758861724921,0.90143995,109310.0,109300.0,1.0882806]
[1758861726219,1.10032415,109310.0,109300.0,1.0882806]
[1758861728615,1.19175215,109310.0,109300.0,1.0882806]
[1758861728819,1.19175215,109310.0,109300.0,0.8893964]
[1758861730122,1.19175215,109310.0,109300.0,1.0882806]
[1758861730332,1.19175215,109310.0,109300.0,0.8893964]
[1758861730628,1.19175215,109310.0,109300.0,1.0882806]
[1758861730829,0.99286795,109310.0,109300.0,1.0882806]
[1758861731025,1.19175215,109310.0,109300.0,1.0882806]
[1758861733330,1.10032415,109310.0,109300.0,1.0882806]
[1758861733631,0.90143995,109310.0,109300.0,0.8893964]
[1758861733834,1.10032415,109310.0,109300.0,1.0882806]
[1758861735834,1.0817342,109310.0,109300.0,1.0882806]
[1758861741029,0.02845,109310.0,109300.0,1.0882806]
[1758861741233,0.88269,109310.0,109300.0,1.0882806]
[1758861746531,0.88269,109310.0,109300.0,1.56819162]
[1758861746737,0.02845,109310.0,109300.0,1.56819162]
[1758861747037,1.18088024,109310.0,109300.0,1.56819162]
[1758861747332,0.32672024,109310.0,109300.0,1.56819162]
[1758861747534,0.86116,109310.0,109300.0,1.56819162]
[1758861747738,0.86116,109310.0,109300.0,1.577424]
[1758861747940,0.76116,109310.0,109300.0,1.577424]
[1758861749241,1.15243024,109320.0,109310.0,0.127018]
[1758861749440,1.17350024,109320.0,109310.0,0.86831946]
[1758861750842,1.17450024,109320.0,109310.0,0.78608824]
[1758861751043,1.18150024,109320.0,109310.0,0.78608824]
[1758861751247,1.18150024,109320.0,109310.0,0.86831946]
[1758861751542,1.18150024,109320.0,109310.0,0.78608824]
[1758861753443,0.88323,109320.0,109310.0,0.78608824]
[1758861753748,1.18150024,109320.0,109310.0,0.78608824]
[1758861753945,1.27291994,109320.0,109310.0,0.78608824]
[1758861758146,1.18150024,109320.0,109310.0,0.78608824]
[1758861758346,1.16043024,109320.0,109310.0,0.78608824]
[1758861759248,1.25184994,109320.0,109310.0,0.78608824]
[1758861759646,1.27291994,109320.0,109310.0,0.78608824]
[1758861759949,1.27291994,109320.0,109310.0,0.487818]
[1758861760250,0.9746497,109320.0,109310.0,0.78608824]
[1758861760551,1.27291994,109320.0,109310.0,0.78608824]
[1758861760748,1.27291994,109320.0,109310.0,0.86831946]
[1758861761343,0.9746497,109320.0,109310.0,0.78608824]
[1758861761549,1.27291994,109320.0,109310.0,0.78608824]
[1758861764350,0.9746497,109320.0,109310.0,0.78608824]
[1758861764548,1.27291994,109320.0,109310.0,0.78608824]
[1758861766647,1.27291994,109320.0,109310.0,0.487818]
[1758861767044,1.27291994,109320.0,109310.0,0.78608824]
[1758861767344,1.57119018,109320.0,109310.0,0.39639]
[1758861767651,1.57119018,109320.0,109310.0,0.69466024]
[1758861767855,1.57119018,109320.0,109310.0,0.78608814]
[1758861769257,1.57119018,109320.0,109310.0,0.4878179]
[1758861769450,1.57119018,109320.0,109310.0,0.78608814]
[1758861769852,1.27291994,109320.0,109310.0,0.78608814]
[1758861770152,1.57119018,109320.0,109310.0,0.4878179]
[1758861770452,1.57119018,109320.0,109310.0,0.78608814]
[1758861771253,1.57119018,109320.0,109310.0,0.4878179]
[1758861771455,1.57119018,109320.0,109310.0,0.78608814]
[1758861773052,0.9746497,109320.0,109310.0,0.4878179]
[1758861773353,1.57119018,109320.0,109310.0,0.78608814]
[1758861773954,1.57119018,109320.0,109310.0,0.69466024]
[1758861774151,1.57119018,109320.0,109310.0,0.39639]
[1758861774352,1.57119018,109320.0,109310.0,0.69466024]
[1758861775056,1.57119018,109320.0,109310.0,0.39765]
[1758861777157,0.9746497,109320.0,109310.0,0.39765]
[1758861777451,1.57119018,109320.0,109310.0,0.39765]
[1758861777852,0.9746497,109320.0,109310.0,0.39765]
[1758861778053,1.57119018,109320.0,109310.0,0.39765]
[1758861780362,0.9746497,109320.0,109310.0,0.39765]
[1758861780658,1.57119018,109320.0,109310.0,0.39765]
[1758861781661,0.9746497,109320.0,109310.0,0.39765]
[1758861781852,1.57119018,109320.0,109310.0,0.39765]
[1758861784161,0.9746497,109320.0,109310.0,0.39765]
[1758861784364,1.57119018,109320.0,109310.0,0.39765]
[1758861795375,0.9746497,109320.0,109310.0,0.39765]
[1758861795675,1.57119018,109320.0,109310.0,0.39765]
[1758861796576,0.9746497,109320.0,109310.0,0.39765]
[1758861796766,1.57119018,109320.0,109310.0,0.39765]
[1758861800078,1.47119018,109320.0,109310.0,0.39765]
[1758861800880,0.8746497,109320.0,109310.0,0.39765]
[1758861801083,1.47119018,109320.0,109310.0,0.39765]
[1758861806590,1.27239884,109320.0,109310.0,0.39765]
[1758861807576,1.27239884,109320.0,109310.0,0.37449]
[1758861807782,1.27239884,109320.0,109300.0,0.39678]
[1758861807783,0.1141076,109310.0,109300.0,0.39678]
[1758861807977,0.31298217,109310.0,109300.0,0.47901122]
[1758861808383,0.31298217,109310.0,109300.0,0.57044732]
[1758861809092,0.31298217,109310.0,109300.0,0.57144732]
[1758861810682,0.31398217,109310.0,109300.0,0.57144732]
[1758861812693,0.31398217,109310.0,109300.0,0.39778]
[1758861814199,0.31398217,109310.0,109300.0,0.39774]
[1758861814595,0.3322818,109310.0,109300.0,0.39774]
[1758861814997,0.31398217,109310.0,109300.0,0.39774]
[1758861815192,0.33252716,109310.0,109300.0,0.39774]
[1758861815493,0.31398217,109310.0,109300.0,0.39774]
[1758861816690,0.31398217,109310.0,109300.0,0.47997122]
[1758861816691,0.33252791,109310.0,109300.0,0.47997122]
[1758861816897,0.33252791,109310.0,109300.0,0.39774]
[1758861817298,0.1151076,109310.0,109300.0,0.39774]
[1758861817496,0.31398217,109310.0,109300.0,0.39774]
[1758861817697,0.1151076,109310.0,109300.0,0.39774]
[1758861817995,0.31398217,109310.0,109300.0,0.39774]
[1758861820695,0.33240163,109310.0,109300.0,0.39774]
[1758861822403,0.31398217,109310.0,109300.0,0.39774]
[1758861823493,0.1151076,109310.0,109300.0,0.39774]
[1758861823693,0.31398217,109310.0,109300.0,0.39774]
[1758861823905,0.31398217,109310.0,109300.0,0.03694]
[1758861824096,0.4759076,109310.0,109300.0,0.03694]
[1758861824295,0.67478217,109310.0,109300.0,0.03694]
[1758861824602,0.4759076,109310.0,109300.0,0.03694]
[1758861824801,0.31398217,109310.0,109300.0,0.03694]
[1758861826000,0.31398217,109310.0,109290.0,0.27608]
[1758861826001,0.1141162,109300.0,109290.0,0.27608]
[1758861826203,1.37291534,109300.0,109290.0,0.27608]
[1758861828300,1.37991534,109300.0,109290.0,0.27608]
[1758861829208,1.37991534,109300.0,109290.0,0.276]
[1758861832405,1.37174534,109300.0,109290.0,0.276]
[1758861833112,1.17287077,109300.0,109290.0,0.3674446]
[1758861833710,0.9739962,109300.0,109290.0,0.3674446]
[1758861834310,1.17287077,109300.0,109290.0,0.3674446]
[1758861834810,1.17287077,109300.0,109290.0,0.7282446]
[1758861835508,0.9739962,109300.0,109290.0,0.7282446]
[1758861835706,1.17287077,109300.0,109290.0,0.7282446]
[1758861841616,0.9739962,109300.0,109290.0,0.7282446]
[1758861841814,1.17287077,109300.0,109290.0,0.7282446]
[1758861842316,1.17287077,109300.0,109290.0,0.92711917]
[1758861843919,1.17279077,109300.0,109290.0,0.92711917]
[1758861844515,1.17279077,109300.0,109290.0,0.7282446]
[1758861845417,1.17279077,109300.0,109290.0,0.68711917]
[1758861847916,0.9739162,109300.0,109290.0,0.68711917]
[1758861848217,1.17279077,109300.0,109290.0,0.68711917]
[1758861850118,0.9739162,109300.0,109290.0,0.68711917]
[1758861850420,1.17279077,109300.0,109290.0,0.76935039]
[1758861851422,0.9739162,109300.0,109290.0,0.76935039]
[1758861851922,1.17279077,109300.0,109290.0,0.76935039]
[1758861852621,0.88256,109300.0,109290.0,0.76935039]
[1758861852823,0.85988,109300.0,109290.0,1.26084588]
[1758861854925,0.85988,109300.0,109290.0,1.06197131]
[1758861855320,0.85988,109300.0,109290.0,1.26084588]
[1758861858623,0.85988,109300.0,109290.0,1.06197131]
[1758861858923,0.85988,109300.0,109290.0,1.26084588]
[1758861859325,0.85988,109300.0,109290.0,1.06197131]
[1758861859525,0.85988,109300.0,109290.0,1.26084588]
[1758861864023,0.85988,109300.0,109290.0,1.17861466]
[1758861865624,0.85988,109300.0,109290.0,1.26084588]
[1758861868528,1.15819716,109300.0,109290.0,1.36028847]
[1758861869227,1.24963346,109300.0,109290.0,1.36028847]
[1758861869416,1.24963346,109300.0,109290.0,1.27805725]
[1758861869819,0.85884,109300.0,109290.0,0.87805725]
[1758861870126,0.9649127,109310.0,109300.0,0.03604]
[1758861870324,1.26322986,109310.0,109300.0,0.33435716]
[1758861870527,1.26322986,109310.0,109300.0,0.69515716]
[1758861870721,1.26322986,109310.0,109300.0,0.78664428]
[1758861872228,1.27522986,109310.0,109300.0,0.78764428]
[1758861872526,1.27822986,109310.0,109300.0,0.78764428]
[1758861873926,1.27822986,109310.0,109300.0,0.48932712]
[1758861874121,1.27802986,109310.0,109300.0,0.78764428]
[1758861874320,0.9797127,109310.0,109300.0,0.78764428]
[1758861874520,1.27802986,109310.0,109300.0,0.78764428]
[1758861875827,1.27802986,109310.0,109300.0,0.48932712]
[1758861876028,1.27802986,109310.0,109300.0,0.78764428]
[1758861876526,1.27802986,109310.0,109300.0,0.48932712]
[1758861876720,1.27802986,109310.0,109300.0,0.78764428]
[1758861877621,1.28917986,109310.0,109300.0,0.48932712]
[1758861877820,1.27802986,109310.0,109300.0,0.48932712]
[1758861878128,1.27802986,109310.0,109300.0,0.69615716]
[1758861879229,1.27802986,109310.0,109300.0,0.39784]
[1758861879526,1.27802986,109310.0,109300.0,0.69615716]
[1758861879928,1.27802986,109310.0,109300.0,0.39784]
[1758861880631,0.9797127,109310.0,109300.0,0.69615716]
[1758861880824,1.27802986,109310.0,109300.0,0.69615716]
[1758861885134,0.9797127,109310.0,109300.0,0.69615716]
[1758861885433,1.27802986,109310.0,109300.0,0.69615716]
[1758861887933,0.1279527,109310.0,109300.0,0.78759366]
[1758861888134,0.86616,109310.0,109300.0,1.17739794]
[1758861889033,0.9575881,109310.0,109300.0,1.17739794]
[1758861894643,1.25590526,109310.0,109300.0,1.17739794]
[1758861898344,1.25590526,109310.0,109300.0,1.25962916]
[1758861898642,1.25590526,109310.0,109300.0,1.17739794]
[1758861899646,0.9575881,109310.0,109300.0,1.17739794]
[1758861899944,1.25590526,109310.0,109300.0,1.17739794]
[1758861900745,0.9575881,109310.0,109300.0,1.17739794]
[1758861900942,1.24122526,109310.0,109300.0,1.17739794]
[1758861901146,0.9429081,109310.0,109300.0,1.17739794]
[1758861901446,0.9395781,109310.0,109300.0,1.17739794]
[1758861901849,0.9316781,109310.0,109300.0,1.17739794]
[1758861902548,0.9538081,109310.0,109300.0,0.58076362]
[1758861902846,0.9538081,109310.0,109300.0,1.17739794]
[1758861903551,0.9473781,109310.0,109300.0,1.17739794]
[1758861904248,0.9464681,109310.0,109300.0,1.17739794]
[1758861904651,0.9432181,109310.0,109300.0,1.17739794]
[1758861905144,0.9394081,109310.0,109300.0,1.17739794]
[1758861905537,0.9335481,109310.0,109300.0,1.17739794]
[1758861906049,0.9166981,109310.0,109300.0,1.17739794]
[1758861906547,0.9152981,109310.0,109300.0,1.17739794]